bitfinex-derivatives/quotes_ETHF0:USTF0_20260113
["timestamp","ask_amount","ask_price","bid_price","bid_amount"]
[1768306537363,1.04546559,3131.9,3131.3,0.36633102]
[1768306537565,0.00336705,3132.0,3131.3,0.36633102]
[1768306537761,1.04549441,3131.9,3131.3,0.36633102]
[1768306538066,0.00336705,3132.0,3131.3,0.36633102]
[1768306538267,1.04543343,3131.9,3131.3,0.36633102]
[1768306538462,0.00336705,3132.0,3131.3,0.36633102]
[1768306538664,1.04543343,3131.9,3131.3,0.36633102]
[1768306538863,0.00336705,3132.0,3131.3,0.36633102]
[1768306539164,1.04487588,3131.9,3131.3,0.36633102]
[1768306539466,0.00336705,3132.0,3131.3,0.36633102]
[1768306539667,1.04485122,3131.9,3131.3,0.36633102]
[1768306539857,0.00336705,3132.0,3131.3,0.36633102]
[1768306540053,0.00336705,3132.0,3131.4,1.47707798]
[1768306540465,0.00336705,3132.0,3131.4,0.3885349]
[1768306540660,0.00336705,3132.0,3131.2,1.08854308]
[1768306543365,1.09191013,3132.0,3131.1,1.08854308]
[1768306545769,1.04481868,3131.9,3131.1,1.08854308]
[1768306545957,1.09191013,3132.0,3131.1,1.08854308]
[1768306546161,1.04481868,3131.9,3131.1,1.08854308]
[1768306546358,1.09191013,3132.0,3131.1,1.08854308]
[1768306546570,1.04486757,3131.9,3131.1,1.08854308]
[1768306546776,1.09191013,3132.0,3131.1,1.08854308]
[1768306547072,1.04486757,3131.9,3131.1,1.08854308]
[1768306547270,0.00336705,3132.0,3131.0,0.3885349]
[1768306547471,1.04492946,3131.9,3131.0,0.3885349]
[1768306547671,0.00336705,3132.0,3131.0,0.3885349]
[1768306547969,1.04492945,3131.9,3131.0,0.3885349]
[1768306548263,0.00336705,3132.0,3131.0,0.3885349]
[1768306548468,1.04500667,3131.9,3131.0,0.3885349]
[1768306548678,0.00336705,3132.0,3131.0,0.3885349]
[1768306548865,1.04500565,3131.9,3131.0,0.3885349]
[1768306549065,0.00336705,3132.0,3131.0,0.3885349]
[1768306549267,1.04510031,3131.9,3131.0,0.3885349]
[1768306549562,0.00336705,3132.0,3131.0,0.3885349]
[1768306549773,1.04526748,3131.9,3131.0,0.3885349]
[1768306549974,0.00336705,3132.0,3131.0,0.3885349]
[1768306550276,1.04569783,3131.9,3131.0,0.3885349]
[1768306550474,0.00336705,3132.0,3131.0,0.3885349]
[1768306550672,1.04580293,3131.9,3131.0,0.3885349]
[1768306550976,0.00336705,3132.0,3131.0,0.3885349]
[1768306551168,1.04580327,3131.9,3131.0,0.3885349]
[1768306551369,0.00336705,3132.0,3131.0,0.3885349]
[1768306551569,1.04597171,3131.9,3131.0,0.3885349]
[1768306551774,0.00336705,3132.0,3131.0,0.3885349]
[1768306551973,1.0459664,3131.9,3131.0,0.3885349]
[1768306552172,0.00336705,3132.0,3131.0,0.3885349]
[1768306552469,1.0461833,3131.9,3131.0,0.3885349]
[1768306552665,0.00336705,3132.0,3131.0,0.3885349]
[1768306552860,1.04650206,3131.9,3131.0,0.3885349]
[1768306553073,0.00336705,3132.0,3131.0,0.3885349]
[1768306553273,1.0467292,3131.9,3131.0,0.3885349]
[1768306553473,0.00336705,3132.0,3131.0,0.3885349]
[1768306553674,1.04678177,3131.9,3131.0,0.3885349]
[1768306553878,0.00336705,3132.0,3131.0,0.3885349]
[1768306554078,1.04678178,3131.9,3131.0,0.3885349]
[1768306554279,1.04678178,3131.8,3131.0,0.3885349]
[1768306554573,0.00336705,3132.0,3131.0,0.3885349]
[1768306554776,1.04706911,3131.9,3131.0,0.3885349]
[1768306554974,1.04706911,3131.8,3131.0,0.3885349]
[1768306555177,0.00336705,3132.0,3131.0,0.3885349]
[1768306555374,1.04707552,3131.9,3131.0,0.3885349]
[1768306555676,1.04707552,3131.8,3131.0,0.3885349]
[1768306555881,0.00336705,3132.0,3131.0,0.3885349]
[1768306556179,1.04716504,3131.9,3131.0,0.3885349]
[1768306556380,1.04716504,3131.8,3131.0,0.3885349]
[1768306556580,0.00336705,3132.0,3131.0,0.3885349]
[1768306556884,1.04717423,3131.9,3131.0,0.3885349]
[1768306557075,1.04717423,3131.8,3131.0,0.3885349]
[1768306557275,0.00336705,3132.0,3131.0,0.3885349]
[1768306557483,1.0472103,3131.9,3131.0,0.3885349]
[1768306557676,1.0472103,3131.8,3131.0,0.3885349]
[1768306557975,0.00336705,3132.0,3131.0,0.3885349]
[1768306558177,1.04723682,3131.9,3131.0,0.3885349]
[1768306558480,1.04723682,3131.8,3131.2,0.3885349]
[1768306558778,0.00336705,3132.0,3131.2,0.3885349]
[1768306558983,1.0474256,3131.9,3131.2,0.3885349]
[1768306559182,0.00336705,3132.0,3131.2,0.3885349]
[1768306559393,1.04743498,3131.9,3131.2,0.3885349]
[1768306559681,0.00336705,3132.0,3131.2,0.3885349]
[1768306559877,1.04743562,3131.9,3131.2,0.3885349]
[1768306560183,0.00336705,3132.0,3131.2,0.3885349]
[1768306560382,1.04745251,3131.9,3131.2,0.3885349]
[1768306560680,0.00336705,3132.0,3131.2,0.3885349]
[1768306560882,1.04745408,3131.9,3131.2,0.3885349]
[1768306561078,0.00336705,3132.0,3131.2,0.3885349]
[1768306561384,1.04747423,3131.9,3131.2,0.3885349]
[1768306561582,0.00336705,3132.0,3131.2,0.3885349]
[1768306561779,1.04739314,3131.9,3131.2,0.3885349]
[1768306561981,0.00336705,3132.0,3131.2,0.3885349]
[1768306562177,1.04737539,3131.9,3131.2,0.3885349]
[1768306562475,0.00336705,3132.0,3131.2,0.3885349]
[1768306562675,1.04737709,3131.9,3131.2,0.3885349]
[1768306562877,0.00336705,3132.0,3131.2,0.3885349]
[1768306563078,1.04737719,3131.9,3131.2,0.3885349]
[1768306563283,0.00336705,3132.0,3131.2,0.3885349]
[1768306563482,1.04738615,3131.9,3131.2,0.3885349]
[1768306563781,0.00336705,3132.0,3131.2,0.3885349]
[1768306563981,1.0473858,3131.9,3131.2,0.3885349]
[1768306564282,0.00336705,3132.0,3131.2,0.3885349]
[1768306564582,1.04740321,3131.9,3131.2,0.3885349]
[1768306564785,0.00336705,3132.0,3131.4,0.40411276]
[1768306565177,1.08924711,3132.9,3131.4,0.40411276]
[1768306565377,1.4574603,3132.8,3131.4,0.40411276]
[1768306565683,1.04729329,3132.7,3131.4,0.40411276]
[1768306565984,1.04729329,3132.6,3131.4,0.40411276]
[1768306566182,1.04729329,3132.5,3131.4,0.40411276]
[1768306583186,1.04729329,3132.5,3132.1,1.08924711]
[1768306583393,0.00237887,3132.6,3132.1,0.39965809]
[1768306583988,0.00237887,3132.6,3131.6,0.39965809]
[1768306585590,0.00237887,3132.6,3131.8,1.4889052]
[1768306585989,0.00237887,3132.6,3131.9,0.39965809]
[1768306586693,1.08924711,3133.3,3131.9,0.39965809]
[1768306586893,1.04562274,3133.2,3131.9,0.39965809]
[1768306587083,1.04562274,3133.1,3131.9,0.39965809]
[1768306587285,1.04562274,3133.0,3131.9,0.39965809]
[1768306587484,1.04562274,3132.9,3131.9,0.39965809]
[1768306587689,1.04562274,3132.8,3131.9,0.39965809]
[1768306587995,0.00301782,3132.9,3131.9,0.39965809]
[1768306588187,1.04555626,3132.8,3131.9,0.39965809]
[1768306588389,0.00301782,3132.9,3131.9,0.39965809]
[1768306588693,0.00301782,3132.9,3132.2,0.39965809]
[1768306592095,1.08924711,3133.5,3132.2,0.39965809]
[1768306592290,1.04522595,3133.4,3132.2,0.39965809]
[1768306592492,1.04522595,3133.3,3132.2,0.39965809]
[1768306592691,1.04522595,3133.2,3132.2,0.39965809]
[1768306592894,0.00352878,3133.2,3132.5,1.4889052]
[1768306593094,1.08924711,3133.9,3132.5,1.4889052]
[1768306593294,1.04534482,3133.8,3132.5,0.39965809]
[1768306593496,2.13459193,3133.7,3132.5,0.39965809]
[1768306593690,1.04534482,3133.6,3132.5,0.39965809]
[1768306593885,1.04534482,3133.5,3132.5,0.39965809]
[1768306594090,1.04534482,3133.4,3132.5,0.39965809]
[1768306594291,0.00318001,3133.5,3132.5,0.39965809]
[1768306594493,1.04480023,3133.4,3132.5,0.39965809]
[1768306594690,0.00318001,3133.5,3132.5,0.39965809]
[1768306597890,0.00318001,3133.5,3132.7,0.42034369]
[1768306598302,0.00318001,3133.5,3133.0,0.42034369]
[1768306598494,1.08924711,3134.3,3133.0,0.42034369]
[1768306598695,1.04402693,3134.2,3133.0,0.42034369]
[1768306598894,1.04402693,3134.1,3133.0,0.42034369]
[1768306599096,1.04402693,3134.0,3133.0,0.42034369]
[1768306599401,0.00383712,3134.0,3133.0,0.42429568]
[1768306602002,0.00383712,3134.0,3133.1,0.42034369]
[1768306607302,0.00383712,3134.0,3133.3,1.50811623]
[1768306607505,1.08777254,3134.5,3133.7,1.08777254]
[1768306607700,1.08777254,3135.0,3133.6,0.42034369]
[1768306608003,1.08777254,3134.4,3133.6,0.42034369]
[1768306608504,1.08777254,3133.8,3133.0,0.42429568]
[1768306608701,1.08777254,3133.8,3133.0,1.51206822]
[1768306608894,1.08777254,3134.0,3133.0,1.51206822]
[1768306609607,1.08777254,3134.0,3133.1,0.42034369]
[1768306610304,1.08777254,3133.6,3133.0,0.00395199]
[1768306610505,1.08777254,3133.4,3132.7,0.42034369]
[1768306610702,1.08777254,3133.4,3132.4,1.08777254]
[1768306611194,1.08777254,3133.4,3132.4,1.50811623]
[1768306611604,1.08777254,3133.4,3132.4,1.51172891]
[1768306611799,1.08777254,3133.8,3132.4,1.51172891]
[1768306611800,1.08777254,3133.2,3132.4,1.51172891]
[1768306612601,1.08777254,3133.3,3132.4,1.51172891]
[1768306614309,1.08777254,3133.3,3132.4,0.00361268]
[1768306615008,1.08777254,3133.1,3132.4,0.00361268]
[1768306615909,0.41880786,3133.9,3132.4,0.00361268]
[1768306616108,1.08777254,3133.2,3132.4,0.00361268]
[1768306616605,1.08777254,3133.3,3132.4,0.00361268]
[1768306616910,0.41880786,3133.9,3132.5,1.08777254]
[1768306617110,1.08777254,3133.4,3132.5,1.08777254]
[1768306617302,1.04312421,3133.3,3132.5,1.08777254]
[1768306617502,1.08777254,3133.4,3132.5,1.08777254]
[1768306617701,1.04312267,3133.3,3132.5,1.08777254]
[1768306617904,1.08777254,3133.2,3132.4,0.00361268]
[1768306618307,1.08777254,3132.8,3132.4,0.00361268]
[1768306618610,1.08777254,3132.8,3131.9,1.08777254]
[1768306619202,1.08777254,3133.1,3132.1,1.08777254]
[1768306619419,1.04307633,3133.0,3132.1,1.0913555]
[1768306619609,1.08777254,3133.1,3132.1,1.0913555]
[1768306619803,1.04307496,3133.0,3132.1,1.0913555]
[1768306620004,1.08777254,3133.1,3132.1,1.0913555]
[1768306620205,1.04307496,3133.0,3132.1,1.0913555]
[1768306620405,1.08777254,3133.1,3132.1,1.0913555]
[1768306620602,1.0431967,3133.0,3132.5,1.08777254]
[1768306620909,1.08777254,3133.4,3132.5,1.08777254]
[1768306621111,1.04329609,3133.3,3132.5,1.08777254]
[1768306621312,1.04329609,3133.2,3132.5,1.08777254]
[1768306621615,1.08777254,3133.4,3132.5,1.08777254]
[1768306621914,1.04334415,3133.3,3132.5,1.08777254]
[1768306622212,1.04334415,3133.2,3132.5,1.08777254]
[1768306622414,1.08777254,3133.4,3132.5,1.08777254]
[1768306622617,1.043369,3133.3,3132.5,1.08777254]
[1768306622811,1.043369,3133.2,3132.5,1.08777254]
[1768306623011,1.08777254,3133.4,3132.5,1.08777254]
[1768306623205,1.04336896,3133.3,3132.5,1.08777254]
[1768306623402,1.04336896,3133.2,3132.5,1.08777254]
[1768306623610,1.08777254,3133.4,3132.5,1.08777254]
[1768306623906,1.04327475,3133.3,3132.5,1.08777254]
[1768306624112,1.04327475,3133.2,3132.5,1.08777254]
[1768306624313,1.08777254,3133.4,3132.5,1.08777254]
[1768306624508,1.04318608,3133.3,3132.7,1.08777254]
[1768306624713,0.15973,3133.6,3132.7,1.08777254]
[1768306624914,2.13097386,3133.5,3132.7,1.08777254]
[1768306625216,1.04320132,3133.4,3132.7,1.08777254]
[1768306625403,1.04320132,3133.3,3132.7,1.08777254]
[1768306625603,0.15973,3133.6,3132.4,1.08777254]
[1768306625604,1.08777254,3133.4,3132.4,1.08777254]
[1768306625812,1.04313561,3133.3,3132.4,1.08777254]
[1768306626015,1.08777254,3133.4,3132.4,1.08777254]
[1768306626315,1.04313908,3133.3,3132.4,1.08777254]
[1768306626507,1.08777254,3133.4,3132.4,1.08777254]
[1768306626708,1.04306758,3133.3,3132.4,1.08777254]
[1768306626907,1.24750254,3133.6,3132.6,1.08777254]
[1768306627116,1.04306886,3133.5,3132.6,1.08777254]
[1768306627317,1.04306886,3133.4,3132.6,1.08777254]
[1768306627619,1.04306886,3133.3,3132.6,1.08777254]
[1768306627923,1.08777254,3133.6,3132.6,1.08777254]
[1768306628216,1.04301808,3133.5,3132.6,1.08777254]
[1768306628411,1.04301808,3133.4,3132.6,1.08777254]
[1768306628616,1.04301808,3133.3,3132.6,1.08777254]
[1768306628813,1.08777254,3133.6,3132.6,1.08777254]
[1768306629002,1.04296298,3133.5,3132.6,1.50075443]
[1768306629209,1.04296298,3133.4,3132.8,1.08777254]
[1768306629406,1.08777254,3133.6,3132.8,1.08777254]
[1768306629610,1.04201079,3133.5,3132.8,1.08777254]
[1768306629809,1.04201079,3133.4,3132.8,1.08777254]
[1768306630021,1.08777254,3133.6,3132.8,1.08777254]
[1768306630319,1.04201068,3133.5,3132.6,1.50075443]
[1768306630521,1.04201068,3133.4,3132.6,1.50075443]
[1768306630818,1.08777254,3133.6,3132.6,1.08777254]
[1768306631009,1.08777254,3133.4,3132.6,1.08777254]
[1768306631209,1.08777254,3133.4,3132.4,1.08777254]
[1768306632420,1.04204149,3133.3,3132.4,1.08777254]
[1768306632621,1.08777254,3133.4,3132.4,1.08777254]
[1768306632824,1.0420785,3133.3,3132.2,0.41298189]
[1768306633122,1.08777254,3133.4,3132.4,1.08777254]
[1768306633316,1.04207763,3133.3,3132.4,1.08777254]
[1768306633513,1.08777254,3133.4,3132.4,1.08777254]
[1768306633715,1.04218426,3133.3,3132.4,1.08777254]
[1768306633922,1.08777254,3133.4,3132.4,1.08777254]
[1768306634226,1.0421844,3133.3,3132.4,1.08777254]
[1768306634428,1.08777254,3133.4,3132.4,1.08777254]
[1768306634619,1.04232266,3133.3,3132.4,1.08777254]
[1768306634816,1.08777254,3133.4,3132.4,1.08777254]
[1768306635117,1.04232172,3133.3,3132.4,1.08777254]
[1768306635320,1.08777254,3133.4,3132.4,1.08777254]
[1768306635625,1.042491,3133.3,3132.4,1.08777254]
[1768306635923,1.08777254,3133.4,3132.4,1.08777254]
[1768306636124,1.042491,3133.3,3132.4,1.08777254]
[1768306636417,1.08777254,3133.4,3132.4,1.08777254]
[1768306636622,1.04269279,3133.3,3132.4,1.08777254]
[1768306636810,1.08777254,3133.4,3132.4,1.08777254]
[1768306637015,1.0426874,3133.3,3132.4,1.08777254]
[1768306637216,1.08777254,3133.4,3132.4,1.08777254]
[1768306637416,1.04293317,3133.3,3132.4,1.08777254]
[1768306637625,1.08777254,3133.4,3132.4,1.08777254]
[1768306637822,1.04293227,3133.3,3132.4,1.08777254]
[1768306638122,1.08777254,3133.4,3132.4,1.08777254]
[1768306638322,1.04351831,3133.3,3132.4,1.08777254]
[1768306638522,1.04351831,3133.2,3132.4,1.08777254]
[1768306638822,1.08777254,3133.8,3132.4,1.08777254]
[1768306639023,1.08777254,3133.4,3132.4,1.08777254]
[1768306639217,1.04351832,3133.3,3132.4,1.08777254]
[1768306639526,1.04351832,3133.2,3132.4,1.08777254]
[1768306639716,1.08777254,3133.4,3132.4,1.08777254]
[1768306639916,1.04394294,3133.3,3132.6,1.08777254]
[1768306640117,1.04394294,3133.2,3132.6,1.08777254]
[1768306640423,1.08777254,3133.6,3132.6,1.08777254]
[1768306640626,1.04453668,3133.5,3132.6,1.08777254]
[1768306640819,1.08777254,3133.6,3132.6,1.08777254]
[1768306640820,1.04453668,3133.4,3132.6,1.08777254]
[1768306641024,1.04453668,3133.3,3132.6,1.08777254]
[1768306641324,1.04453668,3133.2,3132.6,1.08777254]
[1768306641524,1.04453668,3133.1,3132.6,1.53557265]
[1768306641722,1.08777254,3133.6,3132.6,1.53557265]
[1768306641931,1.04467167,3133.5,3132.6,1.53557265]
[1768306642122,1.04467167,3133.4,3132.6,1.53557265]
[1768306642321,1.04467167,3133.3,3132.6,1.53557265]
[1768306642621,1.04467167,3133.2,3132.6,1.53557265]
[1768306642818,1.04467167,3133.1,3132.6,1.53557265]
[1768306643019,1.08777254,3133.6,3132.6,1.53557265]
[1768306643219,1.04478169,3133.5,3132.6,1.53557265]
[1768306643419,1.04478169,3133.4,3132.6,1.53557265]
[1768306643626,1.04478169,3133.3,3132.6,1.53557265]
[1768306643928,1.04478169,3133.2,3132.6,1.53557265]
[1768306644227,1.04478169,3133.1,3132.6,1.53557265]
[1768306644427,1.08777254,3133.6,3132.6,1.53557265]
[1768306644628,1.04506017,3133.5,3132.6,1.53557265]
[1768306644832,1.04506017,3133.4,3132.6,1.53557265]
[1768306645019,1.04506017,3133.3,3132.6,1.53557265]
[1768306645221,1.04506017,3133.2,3132.6,1.53557265]
[1768306645422,1.04506017,3133.1,3132.6,1.53557265]
[1768306645720,1.08777254,3133.6,3132.6,1.53557265]
[1768306645922,1.04510529,3133.5,3132.6,1.53557265]
[1768306646127,1.04510529,3133.4,3132.6,1.53557265]
[1768306646423,1.04510529,3133.3,3132.6,1.53557265]
[1768306646623,1.04510529,3133.2,3132.6,1.53557265]
[1768306646825,1.04510529,3133.1,3132.6,1.53557265]
[1768306647026,1.08777254,3133.6,3132.6,1.53557265]
[1768306647225,1.04513783,3133.5,3132.6,1.53557265]
[1768306647526,1.04513783,3133.4,3132.6,1.53557265]
[1768306647724,1.04513783,3133.3,3132.6,1.53557265]
[1768306647919,1.04513783,3133.2,3132.6,1.53557265]
[1768306648120,1.04513783,3133.1,3132.6,1.53557265]
[1768306648322,1.08777254,3133.6,3132.6,1.53557265]
[1768306648528,1.04517896,3133.5,3132.6,1.53557265]
[1768306648726,1.04517896,3133.4,3132.6,1.53557265]
[1768306648928,1.04517896,3133.3,3132.6,1.53557265]
[1768306649231,1.04517896,3133.2,3132.6,1.53557265]
[1768306649531,1.04517896,3133.1,3132.6,1.53557265]
[1768306649829,1.08777254,3133.6,3132.6,1.53557265]
[1768306650039,1.04522666,3133.5,3132.6,1.53557265]
[1768306650222,1.04522666,3133.4,3132.6,1.53557265]
[1768306650417,1.08777254,3133.6,3132.6,1.53557265]
[1768306650418,1.04522666,3133.3,3132.6,1.53557265]
[1768306650618,1.04522666,3133.2,3132.6,1.53557265]
[1768306650820,0.15971,3134.0,3132.6,1.53557265]
[1768306651025,1.50965987,3133.7,3132.7,1.08777254]
[1768306653344,0.15971,3134.0,3132.7,1.08777254]
[1768306653528,1.08777254,3133.8,3132.7,1.08777254]
[1768306655240,0.42188733,3133.9,3132.7,1.08777254]
[1768306655537,1.08777254,3133.7,3132.7,1.08777254]
[1768306658756,0.42188733,3133.9,3132.9,1.08777254]
[1768306658957,1.08777254,3133.8,3132.9,1.08777254]
[1768306659457,0.42188733,3133.9,3132.9,1.08777254]
[1768306659651,1.08777254,3133.8,3132.9,1.08777254]
[1768306661758,0.15971,3134.0,3132.9,1.08777254]
[1768306661959,1.08777254,3133.9,3132.9,1.08777254]
[1768306662961,1.03853498,3133.8,3132.9,1.08777254]
[1768306663255,1.03853498,3133.7,3132.9,1.08777254]
[1768306663461,1.03853498,3133.6,3132.9,1.08777254]
[1768306663651,1.03853498,3133.5,3132.9,1.08777254]
[1768306663850,1.08777254,3133.9,3132.9,1.08777254]
[1768306664060,1.03855471,3133.8,3132.9,1.08777254]
[1768306664260,1.03855471,3133.7,3132.9,1.08777254]
[1768306664557,1.03855471,3133.6,3132.9,1.08777254]
[1768306664759,1.03855471,3133.5,3132.9,1.08777254]
[1768306664958,1.08777254,3133.9,3132.9,1.08777254]
[1768306665159,1.03854797,3133.8,3132.9,1.08777254]
[1768306665463,1.03854797,3133.7,3132.9,1.08777254]
[1768306665761,1.03854797,3133.6,3132.9,1.08777254]
[1768306665960,1.03854797,3133.5,3132.9,1.08777254]
[1768306666162,1.08777254,3133.9,3132.9,1.08777254]
[1768306666462,1.03860174,3133.8,3132.9,1.08777254]
[1768306666661,1.03860174,3133.7,3132.9,1.08777254]
[1768306666857,1.03860174,3133.6,3132.9,1.08777254]
[1768306667161,1.03860174,3133.5,3132.7,1.08777254]
[1768306667363,1.08777254,3133.9,3132.7,1.08777254]
[1768306667562,1.03861385,3133.8,3132.7,1.08777254]
[1768306667860,1.03861385,3133.7,3132.7,1.08777254]
[1768306668061,1.03861385,3133.6,3132.7,1.08777254]
[1768306668260,1.03861385,3133.5,3132.7,1.08777254]
[1768306668463,1.08777254,3133.9,3132.7,1.08777254]
[1768306668664,1.03864832,3133.8,3132.7,1.08777254]
[1768306668854,1.03864832,3133.7,3132.7,1.08777254]
[1768306669053,1.03864832,3133.6,3132.7,1.08777254]
[1768306669361,1.03864832,3133.5,3132.6,1.088114]
[1768306669561,1.247824,3134.0,3132.6,1.088114]
[1768306669763,1.03868067,3133.9,3132.6,1.088114]
[1768306670060,1.03868067,3133.8,3132.6,1.088114]
[1768306670260,0.44949024,3134.3,3133.1,1.088114]
[1768306670455,1.03883833,3134.2,3133.1,1.088114]
[1768306670655,1.03883833,3134.1,3133.1,1.088114]
[1768306670855,1.03883833,3134.0,3133.1,1.088114]
[1768306671066,1.03883833,3133.9,3133.1,1.088114]
[1768306671263,0.44949024,3134.3,3133.1,1.088114]
[1768306671463,1.03867823,3134.2,3133.1,1.088114]
[1768306671662,1.03867823,3134.1,3133.1,1.088114]
[1768306671863,1.03867823,3134.0,3133.1,1.088114]
[1768306672063,1.03867823,3133.9,3133.1,1.088114]
[1768306672367,0.44949024,3134.3,3133.1,1.088114]
[1768306672557,1.03854349,3134.2,3133.1,1.088114]
[1768306672752,1.03854349,3134.1,3133.1,1.088114]
[1768306673064,1.03854349,3134.0,3133.1,1.088114]
[1768306673364,1.03854349,3133.9,3133.1,1.088114]
[1768306673565,0.44949024,3134.3,3133.1,1.088114]
[1768306673866,1.03843761,3134.2,3133.1,1.088114]
[1768306674064,1.03843761,3134.1,3133.1,1.088114]
[1768306674364,1.03843761,3134.0,3133.1,1.088114]
[1768306674666,1.03843761,3133.9,3133.1,1.088114]
[1768306674860,0.44949024,3134.3,3133.1,1.088114]
[1768306675062,1.03836249,3134.2,3133.1,1.088114]
[1768306675262,1.03836249,3134.1,3133.1,1.088114]
[1768306675561,1.03836249,3134.0,3133.1,1.088114]
[1768306675762,1.03836249,3133.9,3133.1,1.088114]
[1768306675962,0.44949024,3134.3,3133.1,1.088114]
[1768306676162,1.03831974,3134.2,3133.1,1.088114]
[1768306676363,1.03831974,3134.1,3133.1,1.088114]
[1768306676560,1.03831974,3134.0,3133.1,1.088114]
[1768306676760,1.03831974,3133.9,3133.1,1.088114]
[1768306676961,0.44949024,3134.3,3133.1,1.088114]
[1768306677161,1.03830155,3134.2,3133.1,1.088114]
[1768306677361,1.03830155,3134.1,3132.9,1.54165193]
[1768306677662,1.03830155,3134.0,3132.9,1.54165193]
[1768306677962,1.03830155,3133.9,3132.9,1.54165193]
[1768306678161,1.53760424,3134.3,3132.9,1.54165193]
[1768306678356,1.038346,3134.2,3132.9,1.54165193]
[1768306678556,1.038346,3134.1,3132.9,1.54165193]
[1768306678764,1.038346,3134.0,3132.9,1.54165193]
[1768306678965,1.038346,3133.9,3132.9,1.54165193]
[1768306679170,1.53760424,3134.3,3132.9,1.54165193]
[1768306679369,1.53760424,3134.1,3132.8,0.15977]
[1768306679574,1.0383808,3134.0,3132.8,0.15977]
[1768306679770,1.0383808,3133.9,3132.8,0.15977]
[1768306679972,1.53760424,3134.1,3132.8,0.15977]
[1768306680164,1.03837888,3134.0,3132.8,0.15977]
[1768306680472,1.53760424,3133.6,3132.3,1.4678]
[1768306680770,1.03837888,3133.5,3132.3,0.1598]
[1768306680961,1.53760424,3133.6,3132.3,0.1598]
[1768306681161,1.03831678,3133.5,3132.3,0.1598]
[1768306681360,1.53760424,3133.6,3132.3,0.1598]
[1768306681564,1.03831659,3133.5,3132.3,0.1598]
[1768306681770,1.53760424,3133.6,3132.3,0.1598]
[1768306681975,1.03831737,3133.5,3132.3,0.1598]
[1768306682271,1.53760424,3133.6,3132.3,0.1598]
[1768306682472,1.03831539,3133.5,3132.3,0.1598]
[1768306682771,1.53760424,3133.6,3132.3,0.1598]
[1768306682970,1.48780383,3133.5,3132.3,0.1598]
[1768306683170,0.44949024,3133.5,3132.3,0.1598]
[1768306683772,1.03820782,3133.4,3132.3,0.1598]
[1768306683973,1.03820782,3133.3,3132.3,0.1598]
[1768306684172,0.44949024,3133.5,3132.3,0.1598]
[1768306684472,1.03810983,3133.4,3132.3,0.1598]
[1768306684671,0.44949024,3133.5,3132.3,0.1598]
[1768306684881,1.03810986,3133.4,3132.3,0.1598]
[1768306685070,0.44949024,3133.5,3132.3,0.1598]
[1768306685266,1.03806764,3133.4,3132.3,0.1598]
[1768306685467,0.44949024,3133.5,3132.3,0.1598]
[1768306685668,1.03804487,3133.4,3132.3,0.1598]
[1768306685965,0.44949024,3133.5,3132.3,0.1598]
[1768306686277,1.0380441,3133.4,3132.3,0.1598]
[1768306686575,0.44949024,3133.5,3132.3,0.1598]
[1768306686876,1.03796602,3133.4,3132.3,0.1598]
[1768306687072,0.44949024,3133.5,3132.3,0.1598]
[1768306687368,1.03792301,3133.4,3132.3,0.1598]
[1768306687677,0.44949024,3133.5,3132.3,0.1598]
[1768306687975,1.03787819,3133.4,3132.3,0.1598]
[1768306688176,0.44949024,3133.5,3132.3,0.1598]
[1768306688377,1.03781676,3133.4,3132.3,0.1598]
[1768306688674,1.088114,3133.6,3132.3,0.1598]
[1768306688675,1.54837995,3133.3,3132.3,0.1598]
[1768306688879,0.51056175,3133.3,3132.3,0.1598]
[1768306692174,0.51056175,3133.3,3132.3,1.247914]
[1768306692682,0.51056175,3133.7,3132.3,1.247914]
[1768306692882,1.03744092,3133.6,3132.3,1.247914]
[1768306693181,1.03744092,3133.5,3132.3,1.247914]
[1768306693376,1.03744092,3133.4,3132.3,1.247914]
[1768306693578,0.51056175,3133.7,3132.3,1.247914]
[1768306693877,1.0373872,3133.6,3132.3,1.247914]
[1768306694076,1.0373872,3133.5,3132.3,1.247914]
[1768306694276,1.0373872,3133.4,3132.3,1.247914]
[1768306694482,0.51056175,3133.7,3132.3,1.247914]
[1768306694683,1.03733139,3133.6,3132.6,1.088114]
[1768306694881,1.03733139,3133.5,3132.6,1.088114]
[1768306695076,1.03733139,3133.4,3132.6,1.088114]
[1768306695276,0.51056175,3133.7,3132.6,1.088114]
[1768306695483,1.03729138,3133.6,3132.6,1.088114]
[1768306695679,1.03729138,3133.5,3132.6,1.088114]
[1768306695882,1.03729138,3133.4,3132.6,1.088114]
[1768306696183,0.51056175,3133.7,3132.6,1.088114]
[1768306696383,1.03725718,3133.6,3132.6,1.088114]
[1768306696583,1.03725718,3133.5,3132.6,1.088114]
[1768306696780,1.03725718,3133.4,3132.6,1.088114]
[1768306697083,0.51056175,3133.7,3132.6,1.088114]
[1768306697285,1.03725309,3133.6,3132.6,1.088114]
[1768306697485,1.03725309,3133.5,3132.6,1.088114]
[1768306697686,1.03725309,3133.4,3132.6,1.088114]
[1768306697886,0.51056175,3133.7,3132.6,1.088114]
[1768306698190,0.54869734,3134.2,3132.9,1.088114]
[1768306698386,1.03736265,3134.1,3132.9,1.088114]
[1768306698580,1.03736265,3134.0,3133.2,1.088114]
[1768306698786,0.54869734,3134.2,3133.2,1.088114]
[1768306698983,1.03750905,3134.1,3133.2,1.088114]
[1768306699180,0.00229538,3134.4,3133.2,1.088114]
[1768306699381,1.03741149,3134.3,3133.2,1.088114]
[1768306699689,1.03741149,3134.2,3133.2,1.088114]
[1768306699881,1.03741149,3134.1,3133.2,1.088114]
[1768306700080,0.00229538,3134.4,3133.2,1.088114]
[1768306700282,1.03734814,3134.3,3133.2,1.088114]
[1768306700586,1.03734814,3134.2,3133.2,1.088114]
[1768306700789,1.03734814,3134.1,3133.2,1.088114]
[1768306700990,0.00229538,3134.4,3133.2,1.088114]
[1768306701191,1.03730622,3134.3,3133.2,1.088114]
[1768306701385,1.03730622,3134.2,3133.2,1.088114]
[1768306701586,1.03730622,3134.1,3133.2,1.088114]
[1768306701792,0.00229538,3134.4,3133.2,1.088114]
[1768306702095,1.03725195,3134.3,3133.2,1.088114]
[1768306702390,1.03725195,3134.2,3133.2,1.088114]
[1768306702581,0.00229538,3134.4,3133.2,1.088114]
[1768306702779,1.03721002,3134.3,3133.2,1.088114]
[1768306702985,1.03721002,3134.2,3133.2,1.088114]
[1768306703187,0.00229538,3134.4,3133.2,1.088114]
[1768306703384,1.03710438,3134.3,3133.2,1.088114]
[1768306703592,0.00229538,3134.4,3133.2,1.088114]
[1768306703891,1.03710324,3134.3,3133.2,1.088114]
[1768306704185,0.00229538,3134.4,3133.2,1.088114]
[1768306704381,1.0369947,3134.3,3133.2,1.088114]
[1768306704586,0.00229538,3134.4,3133.2,1.088114]
[1768306704894,1.03699406,3134.3,3133.2,1.088114]
[1768306705192,0.00229538,3134.4,3133.2,1.088114]
[1768306705393,1.03688642,3134.3,3133.2,1.088114]
[1768306705589,0.00229538,3134.4,3133.5,1.088114]
[1768306706889,0.00229538,3134.4,3133.3,0.15974]
[1768306707092,0.00229538,3134.4,3133.3,0.65617351]